Cogmind - Beta 14 @@@ ROGUE MODE // 2024.10.15 @ 04:01:22 Player: skkpq Result: Destroyed self via exploding Fusion Modulator Performance ------------- Evolutions (1) 500 Regions Visited (2) 400 Robots Destroyed (18) 90 Value Destroyed (481) 481 Prototype IDs (0) 0 Alien Tech Used (0) 0 Bonus (0) 0 TOTAL SCORE: 1471 Bonus ------- None Cogmind --------- Core Integrity 0/400 Matter 175/300 Energy 100/100 System Corruption 0% Temperature Cool (12) Movement Core (100) Ox1 Location -9/Materials Parts ------- > --- POWER (1) -------- (None) > --- PROPULSION (2) --- (None) > --- UTILITY (4) ------ Small Storage Unit Signal Interpreter Power Shielding > --- WEAPON (2) ------- (None) > --- INVENTORY (8) ---- Improved Ion Engine Aluminum Leg Wheel Heat Sink Assault Rifle Assault Rifle Peak State ------------ > --- POWER ------------ Ion Engine > --- PROPULSION ------- Aluminum Leg Aluminum Leg > --- UTILITY ---------- Small Storage Unit Signal Interpreter Seismic Detector Power Shielding > --- WEAPON ----------- Assault Rifle Assault Rifle > --- INVENTORY -------- Improved Ion Engine Aluminum Leg Wheel Wheel Heat Sink Assault Rifle Grenade Launcher Mini Grenade Launcher [Rating: 10] Favorites ----------- Power Ion Engine Engine Ion Engine Propulsion Aluminum Leg Leg Aluminum Leg Wheel Wheel Utility Small Storage Unit Device Seismic Detector Storage Small Storage Unit Processor Signal Interpreter Protection Power Shielding Weapon Assault Rifle Ballistic Gun Assault Rifle Launcher Mini Grenade Launcher Build | -11 -10 -9 ------- Run | Yrd Mat Mat Slots Evolved 2 | . . 2 Power . | . . . Propulsion . | . . . Utility 2 | . . 2 Weapon . | . . . Parts Attached 17 | 7 5 5 Power 2 | 2 . . Engine 2 | 2 . . Core . | . . . Reactor . | . . . Propulsion 3 | 2 . 1 Treads . | . . . Leg 2 | 2 . . Wheel 1 | . . 1 Hover . | . . . Flight . | . . . Utility 5 | 1 2 2 Device 1 | . . 1 Storage 1 | 1 . . Processor 1 | . 1 . Hackware . | . . . Protection 2 | . 1 1 Artifact . | . . . Weapon 7 | 2 3 2 Energy Gun . | . . . Energy Cannon . | . . . Ballistic Gun 5 | 2 3 . Ballistic Cannon . | . . . Launcher 2 | . . 2 Special Weapon . | . . . Impact Weapon . | . . . Slashing Weapon . | . . . Piercing Weapon . | . . . Special Melee Weapon . | . . . Unidentified Prototypes . | . . . Parts Lost 8 | . . 8 Power 1 | . . 1 Propulsion 3 | . . 3 Utility 1 | . . 1 Weapon 3 | . . 3 Highest Loss Streak 8 | . . 8 To Critical Strikes . | . . . Average Slot Usage (%) 93 | . 95 90 Engine 12 | . 14 9 Leg 23 | . 28 17 Device 3 | . . 8 Storage 12 | . 14 11 Processor 10 | . 10 11 Protection 4 | . . 11 Ballistic Gun 23 | . 27 18 Peak Build Rating 10 | 6 7 10 Average Rating 7 | 4 6 8 On Entrance 4 | . 6 7 Naked Turns . | . . . Heaviest Build 16 | 13 14 16 Greatest Support 20 | 20 20 20 Greatest Overweight (x) 4 | 1 . 4 Average Overweight (x) . | . . . Largest Inventory Capacity 8 | 8 8 8 Average Capacity 7 | 6 8 8 Most Carried 8 | 6 8 8 Average Carried 7 | 3 7 7 Final Capacity 8 | 8 8 8 Final Carried 8 | 6 8 6 Class Distribution -------------------- 100% | Mutant Dominant Class ---------------- Mutant | -10/Materials Mutant | -9/Materials Resources | -11 -10 -9 ----------- Run | Yrd Mat Mat Matter Collected 464 | 189 43 232 Remotely . | . . . Salvage Created 543 | . 43 500 Parts 24 | . 3 21 Haulers Intercepted . | . . . Recyclers Shooed . | . . . Parts Field Recycled . | . . . Retrieved Matter . | . . . Parts Self-Destructed . | . . . Prevented . | . . . Kills | -11 -10 -9 ------- Run | Yrd Mat Mat Combat Hostiles Destroyed 12 | . 3 9 Guns 7 | . 3 4 AOE 5 | . . 5 Classes Destroyed 7 | . 1 6 Worker 2 | . . 2 Builder 1 | . . 1 Recycler 3 | . . 3 Swarmer 3 | . 3 . Grunt 4 | . . 4 Duelist 1 | . . 1 Sentry 4 | . . 4 Best Kill Streak 12 | . 2 12 Combat Bots Only 6 | . 2 6 Max Kills in Single Turn 4 | . 1 4 Gunslinging . | . . . Exploded 2 | . . 2 Melee . | . . . Uniques/NPCs Destroyed . | . . . Combat | -11 -10 -9 -------- Run | Yrd Mat Mat Hostile Shots Fired 92 | . 10 82 Missed 29 | . 5 24 Damage Taken 1069 | . 39 1030 Core 411 | . 10 401 Absorbed by Shields . | . . . Redirected to Shielding 26 | . . 26 Core Remaining (%) 98 | 100 96 . Volleys Fired 30 | . 7 23 Largest 2 | . 2 2 Hottest 50 | . 40 50 Shots Fired 56 | . 14 42 Gun 43 | . 14 29 Cannon . | . . . Launcher 13 | . . 13 Special . | . . . Kinetic 43 | . 14 29 Thermal . | . . . Explosive 13 | . . 13 Electromagnetic . | . . . Robot Hit Streak 11 | . 5 11 Robot Miss Streak 4 | . 2 4 Penetration Max . | . . . Secondary Targets . | . . . Shots Hit Robots 35 | . 8 27 Core Hits 36 | . 3 33 Critical Kills . | . . . Critical Parts Destroyed . | . . . Critical Strikes . | . . . Melee Attacks . | . . . Impact . | . . . Slashing . | . . . Piercing . | . . . Sneak Attacks . | . . . Combat Hostiles . | . . . Follow-up Attacks . | . . . Damage Inflicted 1175 | . 92 1083 Guns 346 | . 92 254 Cannons . | . . . Explosions 829 | . . 829 Melee . | . . . Ramming . | . . . Kinetic 346 | . 92 254 Thermal 99 | . . 99 Explosive 730 | . . 730 Electromagnetic . | . . . Impact . | . . . Slashing . | . . . Piercing . | . . . Highest Corruption . | . . . Average Corruption . | . . . Corruption Purged . | . . . Corruption Blocked . | . . . Overload Shots . | . . . Overflow Damage 5 | . . 5 Projectiles . | . . . Explosions 5 | . . 5 Melee . | . . . Knockbacks . | . . . Impact . | . . . Kinetic . | . . . Secondary . | . . . Self-Inflicted Damage 236 | . . 236 Shots 6 | . . 6 Rammed . | . . . Targets Rammed . | . . . Kicked . | . . . Crushed . | . . . Highest Temperature 22 | . . 22 Average Temperature 9 | . . 9 Received Heat Transfer 345 | . . 345 Siege Activations . | . . . Robots Corrupted . | . . . Combat Hostiles . | . . . Parts Fried . | . . . Impact Corruptions . | . . . Robots Melted . | . . . Combat Hostiles . | . . . Parts Melted . | . . . Heat Transferred 50 | . . 50 Parts Sabotaged . | . . . Parts Stolen . | . . . Parts Stripped . | . . . Power Chain Reactions . | . . . Alert | -11 -10 -9 ------- Run | Yrd Mat Mat Peak Influence 330 | . 119 330 Initial . | . . . Average 50 | . 36 80 Maximum Alert Level 1 | . . 1 Low Security (%) 92 | 100 100 81 Level 1 7 | . . 18 Level 2 . | . . . Level 3 . | . . . Level 4 . | . . . Level 5 . | . . . High Security . | . . . Max Security . | . . . Squads Dispatched 1 | . . 1 Investigation . | . . . Extermination . | . . . Reinforcement 1 | . . 1 Assault . | . . . Garrison . | . . . Intercept . | . . . Searches Triggered . | . . . Construction Impeded . | . . . Haulers Reinforced . | . . . Active Scanning Responses . | . . . Cargo Convoy Interrupts . | . . . Stealth | -11 -10 -9 --------- Run | Yrd Mat Mat Distress Signals 3 | . . 3 Communications Jammed . | . . . Distress Signals . | . . . Times Spotted 22 | . 6 16 Peak Tracking Total 9 | . 4 9 Tactical Retreats 2 | . 1 1 Traps | -11 -10 -9 ------- Run | Yrd Mat Mat Traps Triggered . | . . . Indirectly . | . . . Trap Hack Attempts . | . . . Triggered . | . . . Disarmed . | . . . Reprogrammed . | . . . Reused . | . . . Traps Extracted . | . . . Installed . | . . . Triggered . | . . . Machines | -11 -10 -9 ---------- Run | Yrd Mat Mat Machines Disabled 5 | . . 5 Max in Single Turn 2 | . . 2 Machines Repaired . | . . . Machines Dismantled . | . . . Machines Sabotaged . | . . . Overloaded Fab Kills . | . . . Hacking | -11 -10 -9 --------- Run | Yrd Mat Mat Machines Accessed 7 | . 4 3 Terminals 7 | . 4 3 Fabricators . | . . . Repair Stations . | . . . Recycling Units . | . . . Scanalyzers . | . . . Garrison Access . | . . . Total Hacks 17 | . 9 8 Successful 4 | . 1 3 Failed 13 | . 8 5 Catastrophic 5 | . 3 2 Database Lockouts . | . . . Manual 12 | . 4 8 Terminals 17 | . 9 8 Fabricators . | . . . Repair Stations . | . . . Recycling Units . | . . . Scanalyzers . | . . . Garrison Access . | . . . Terminal Hacks 4 | . 1 3 Emergency Access Points 1 | . . 1 Locate Traps 3 | . 1 2 Fabricator Hacks . | . . . Repair Station Hacks . | . . . Recycling Unit Hacks . | . . . Scanalyzer . | . . . Garrison Access Hacks . | . . . Unauthorized Hacks . | . . . Terminals . | . . . Fabricators . | . . . Repair Stations . | . . . Recycling Units . | . . . Scanalyzers . | . . . Garrison Access . | . . . Data Cores Recovered . | . . . Used . | . . . Hacking Detections 7 | . 4 3 Full Trace Events . | . . . Feedback Events . | . . . Feedback Blocked . | . . . Robot Schematics Acquired . | . . . Robots Built . | . . . Authchips . | . . . Time . | . . . Total Robot Build Rating . | . . . Part Schematics Acquired . | . . . Parts Built . | . . . Authchips . | . . . Time . | . . . Total Part Build Rating . | . . . Parts Repaired . | . . . Time . | . . . Parts Recycled . | . . . Recycled Matter . | . . . Retrieved Matter . | . . . Retrieved Components . | . . . Parts Scanalyzed . | . . . Part Schematics Acquired . | . . . Parts Damaged . | . . . Bothacking | -11 -10 -9 ------------ Run | Yrd Mat Mat Used RIF Installer . | . . . Robots Hacked . | . . . Non-combat . | . . . Combat . | . . . Robot Hacks Applied . | . . . Relay Couplers Released . | . . . Fabnet Peak Effective % . | . . . Robots Rewired . | . . . Allies Hacked . | . . . Hacks Repelled . | . . . Allies | -11 -10 -9 -------- Run | Yrd Mat Mat Total Allies . | . . . Largest Group . | . . . Highest-Rated Group . | . . . Highest-Rated Ally . | . . . Total Orders . | . . . Ally Attacks . | . . . Total Damage . | . . . Kills . | . . . Allies Corrupted . | . . . Allies Melted . | . . . Intel | -11 -10 -9 ------- Run | Yrd Mat Mat Robot Analysis Total . | . . . Derelict Logs Recovered . | . . . Drone Launches . | . . . Drone Recoveries . | . . . Exploration | -11 -10 -9 ------------- Run | Yrd Mat Mat Turns Passed 749 | 53 412 284 Spaces Moved 505 | 34 309 162 Core 9 | 5 . 4 Treads . | . . . Legs 478 | 29 309 140 Wheels 18 | . . 18 Hover . | . . . Flight . | . . . Fastest Speed 50 | 50 120 80 Average Speed 118 | 111 120 116 Slowest Speed 250 | 190 120 250 Overloaded Moves . | . . . Propulsion Burnouts . | . . . Robots Hopped . | . . . Cave-ins Triggered . | . . . Exploration Rate (%) 23 | 3 51 16 Regions Visited 2 Branch Regions . Pre-discovered Areas . | . . . Known Exits Taken 1 | . 1 . Unknown Exits Taken 1 | 1 . . Scrap Searched . | . . . Spaces Dug . | . . . Terrain Destroyed 64 | . . 64 Melee . | . . . Projectile . | . . . AOE 64 | . . 64 Terrain Rammed . | . . . Walls Destroyed . | . . . Machines Disabled . | . . . Actions | -11 -10 -9 --------- Run | Yrd Mat Mat Total 598 | 45 339 214 Wait 20 | . . 20 Move 503 | 33 308 162 Hop . | . . . Pick Up 16 | 5 8 3 Fast Attach 11 | 6 5 . Attach 4 | . . 4 Detach 1 | . 1 . Swap 2 | 1 . 1 Drop 11 | . 10 1 Fire 30 | . 7 23 Melee . | . . . Ram . | . . . Kick . | . . . Crush . | . . . Escape Stasis . | . . . Rewire . | . . . Trap . | . . . Miscellaneous . | . . . Route ------- -11/Scrapyard -10/Materials -9/Materials History --------- Turn | Location | Event 21 | -11/Scrapyard | Discovered new exit (range 16) 54 | -11/Scrapyard | Entered Materials 323 | -10/Materials | Build established: Mutant 346 | -10/Materials | Discovered new exit (range 8) 465 | -10/Materials | Identified exit to Materials 466 | -10/Materials | Entered another Materials area 466 | -9/Materials | Evolved 2 slots: Utility x2 727 | -9/Materials | Core integrity fell below 50% 750 | -9/Materials | Destroyed self via exploding Fusion Modulator Last Messages --------------- U-05 Engineer builds a Wall. The unstable cave ceiling collapses. Acquired 12 matter. U-05 Engineer lays Concrete. U-05 Engineer builds a Wall. U-05 Engineer lays Concrete. Acquired 47 matter. U-05 Engineer lays Concrete. Acquired 120 matter. U-05 Engineer builds a Wall. The unstable cave ceiling collapses. U-05 Engineer lays Concrete. U-05 Engineer builds a Wall. Wheel destroyed. Destroyed Wheel. Terminal disabled. Mni. Grenade Launcher destroyed. Fusion Modulator explodes. L-31 Rogue destroyed. Fusion Modulator explodes. Map ----- +----------------------------------------------------+ | ?????????????????????????????????????????????????? | | ?????????????????????????????????????????????????? | | ?????????????????????????????????????????????????? | | ?????????????????????????????????????????????????? | | ?????????????????????????????????????????????????? | | ?????????????????????????????????????????????????? | | ?????????????????????????????????????????????????? | | ?????????????????????????????????????????????????? | | ?????????????????????????????????????????????????? | | ?????????????????????????????????????????????????? | | ?????????????????????????????????????????????????? | | ?????????????????????????????????????????????????? | | ?????????????????????????????????????????????????? | | ?????????????????????????????????????????????????? | | ?????????????????????????????????????????????????? | | ?????????????????????????????????????????????????? | | ?????????????????????????????????????????????????? | | ???????????????????#?????????????????????????????? | | ?????????????????# ????????????????????????????? | | ?????????????????# ""????????????????????????????? | | ?????????????????# "Y"???????????????????? ??????? | | ?????????????????#k ??????????????????# ?????? | | ?????????????????# ###???########### ?????? | | ?????????????????# # #???# ?????? | | ???????????????????## ###;# ?????? | | ???????????????????# @ # ???????? | | ???????????????????# Y % # #?????????? | | ???????????????????# # ##????????? | | ???????????????????## # #????????? | | ????????????????????# g #????????? | | ????????????????????# # ##????????? | | ????????????????????# ####* ####?????? | | ????????????????????# # % ####### | | ????????????????????######## ! [#| T | | ??????????????????????????# %* ! =%"" | | ??????????????????????????## ![#* | | ???????????????????????????# # # ###+### | | ???????????????????????????# ## #### #? | | ???????????????????????????### = # #??# #? | | ????????????????????????????# # #??# #? | | ????????????????????????????# ### #??# #? | | ????????????????????????????# " ## #??# #? | | ????????????????????????????### "" ### #??# #? | | ??????????????????????????????# """ #?# #??# #? | | ??????????????????????????????# #?# #??#####? | | ??????????????????????????????########?# #???????? | | ??????????????????????????????# ### ###?????? | | ??????????????????????????????# #! #?????? | | ??????????????????????????????#"" # #?????? | | ??????????????????????????????#"T ]] + *####### | +----------------------------------------------------+ Best States ------------- Heat Dissipation 28 Energy Generation 10 Energy Capacity 250 Matter Stores 219 Matter Capacity 300 Sight Range 16 Terrain Scan Density 10 Power Shielding 33 Weapon Shielding 33 Evasion (%) 55 Item Schematics ----------------- None Robot Schematics ------------------ None Fabricated ------------ Nothing Alien Tech Used ----------------- None Achievements -------------- None Challenges ------------ None Game ------ Seed MicrowarpRefineryShovel Manual? 0 Play Time 00:16:50 Cumulative 33.6 hours Start 2024.10.15 @ 03:46:44 End 2024.10.15 @ 04:01:22 Sessions 1 Manual Loads 0 Difficulty Rogue Special Mode None Game No. 22 Rogue 22 Adventurer 0 Explorer 0 Win Type - Total 0 Types 0/0/0/0/0/0/0/0/0 Lore% 12 Gallery% 31 Achievement% 24 Wizard Run 0 Options --------- Layout 1 ASCII 0 Keyboard 1 Movement Numpad Keybinds 0 Fullscreen 1 Font 24/Smallcaps Map View 50x35 Zoom Use 0% Tactical HUD 0 Map Filters NONE Filters NONE Steam 1 RUN: e7b559c3-b1bd-4a4b-a4e8-88d9cdf910ea